bitfinex/quotes_BTCUSD_20251001
["timestamp","ask_amount","ask_price","bid_price","bid_amount"]
[1759291240020,0.02168498,114160.0,114150.0,8.67642141]
[1759291240450,0.02168498,114160.0,114150.0,8.92546141]
[1759291240664,0.02168498,114160.0,114150.0,8.92542141]
[1759291242330,0.02168498,114160.0,114150.0,8.93801695]
[1759291243832,0.02068212,114160.0,114150.0,8.93801695]
[1759291244063,0.02068212,114160.0,114150.0,9.23801695]
[1759291244279,0.02068212,114160.0,114150.0,9.39828287]
[1759291245011,0.02068212,114160.0,114150.0,9.39836287]
[1759291245801,0.0201812,114160.0,114150.0,9.39836287]
[1759291247264,0.0201812,114160.0,114150.0,10.38160287]
[1759291248794,0.02012198,114160.0,114150.0,10.38160287]
[1759291249865,0.02012198,114160.0,114150.0,10.21776287]
[1759291250078,0.17511601,114210.0,114200.0,0.51513134]
[1759291250300,0.18051601,114210.0,114200.0,8.81184077]
[1759291250508,0.18051601,114210.0,114200.0,9.01077211]
[1759291250719,0.18051601,114210.0,114200.0,8.13132077]
[1759291250923,0.18051601,114210.0,114200.0,9.01077211]
[1759291251121,0.18051601,114210.0,114200.0,8.91969211]
[1759291251330,0.18098216,114210.0,114200.0,8.91969211]
[1759291251548,0.18098216,114210.0,114200.0,9.07739157]
[1759291251780,0.18098216,114210.0,114200.0,8.83560077]
[1759291251986,0.18098216,114210.0,114200.0,9.01073211]
[1759291252194,0.2036393,114210.0,114200.0,8.91969211]
[1759291252408,0.02627615,114210.0,114200.0,9.01280211]
[1759291252613,0.02412615,114210.0,114200.0,9.01592211]
[1759291252819,0.20464216,114210.0,114200.0,8.83564077]
[1759291253026,0.20464216,114210.0,114200.0,8.49564077]
[1759291253253,0.20464216,114210.0,114200.0,7.79132077]
[1759291253458,0.20464216,114210.0,114200.0,8.49564077]
[1759291253660,0.20464216,114210.0,114200.0,8.67077211]
[1759291254417,0.20449259,114210.0,114200.0,8.67077211]
[1759291254837,0.20449259,114210.0,114200.0,7.96645211]
[1759291255076,0.20449259,114210.0,114200.0,8.67073211]
[1759291256672,0.02937658,114210.0,114200.0,8.67073211]
[1759291256955,0.20449259,114210.0,114200.0,8.67073211]
[1759291257181,0.20424263,114210.0,114200.0,8.67073211]
[1759291257407,0.20424263,114210.0,114200.0,9.19869211]
[1759291258770,0.20411821,114210.0,114200.0,9.19869211]
[1759291260540,0.0290022,114210.0,114200.0,9.19869211]
[1759291260764,0.0257522,114210.0,114200.0,9.20076211]
[1759291261020,0.0257522,114210.0,114200.0,9.20388211]
[1759291261021,0.0236022,114210.0,114200.0,9.20388211]
[1759291261260,0.0236022,114210.0,114200.0,9.54388211]
[1759291261745,0.0236022,114210.0,114200.0,8.47548211]
[1759291261953,0.0236022,114210.0,114200.0,9.61120731]
[1759291262154,0.0236022,114210.0,114200.0,8.54264731]
[1759291262363,0.0236022,114210.0,114200.0,9.61120731]
[1759291262575,0.0236022,114210.0,114200.0,9.61116731]
[1759291263715,0.0236022,114210.0,114200.0,9.15600731]
[1759291263927,0.02310149,114210.0,114200.0,9.61108731]
[1759291264132,0.02285164,114210.0,114200.0,9.61108731]
[1759291265054,0.02285164,114210.0,114200.0,9.76312962]
[1759291267351,0.02260179,114210.0,114200.0,9.60828962]
[1759291267562,0.02260179,114210.0,114200.0,8.83084962]
[1759291267769,0.02260179,114210.0,114200.0,9.17148962]
[1759291268518,0.02245229,114210.0,114200.0,9.17148962]
[1759291268719,0.02245229,114210.0,114200.0,9.08048962]
[1759291269798,0.02245229,114210.0,114200.0,8.83084962]
[1759291270191,0.02245229,114210.0,114200.0,9.08040962]
[1759291271541,0.02245229,114210.0,114200.0,8.83084962]
[1759291271684,0.02245229,114210.0,114200.0,9.08040962]
[1759291272577,0.02240313,114210.0,114200.0,9.08040962]
[1759291273136,0.0004,114230.0,114220.0,0.81510068]
[1759291273344,0.00053981,114230.0,114220.0,8.9433998]
[1759291273543,0.00053981,114230.0,114220.0,8.7229098]
[1759291273748,0.00053981,114230.0,114220.0,8.9723898]
[1759291274577,0.00053981,114230.0,114220.0,8.6724298]
[1759291275633,0.00023979,114230.0,114220.0,8.6724298]
[1759291276928,0.00023979,114230.0,114220.0,8.4229098]
[1759291277145,0.00023979,114230.0,114220.0,8.6724298]
[1759291277342,0.00023979,114230.0,114220.0,9.6553098]
[1759291279677,0.02339908,114240.0,114230.0,0.51508535]
[1759291279871,0.0004,114250.0,114240.0,0.17507002]
[1759291280078,0.0004,114250.0,114240.0,8.19215079]
[1759291280226,0.1806547,114250.0,114240.0,8.21600079]
[1759291280880,0.1754547,114250.0,114240.0,8.21810079]
[1759291281084,0.0004,114250.0,114240.0,8.22132079]
[1759291281280,0.1775447,114250.0,114240.0,8.22132079]
[1759291282045,0.1775447,114250.0,114240.0,8.21810079]
[1759291282606,0.00244086,114250.0,114240.0,8.21810079]
[1759291282813,0.00035086,114250.0,114240.0,8.22132079]
[1759291283650,0.00035086,114250.0,114240.0,8.56132079]
[1759291284928,0.00035086,114250.0,114240.0,8.31176079]
[1759291285148,0.00035086,114250.0,114240.0,9.38028079]
[1759291285549,0.00035086,114250.0,114240.0,8.31176079]
[1759291285761,0.00035086,114250.0,114240.0,9.38028079]
[1759291287125,0.00035086,114250.0,114240.0,9.46966626]
[1759291287806,0.00035086,114250.0,114240.0,9.49200765]
[1759291288427,0.00025156,114250.0,114240.0,9.49200765]
[1759291289575,0.00025156,114250.0,114240.0,8.42348765]
[1759291289989,0.00025156,114250.0,114240.0,9.49260765]
[1759291290205,0.00234156,114250.0,114240.0,8.33088218]
[1759291290417,0.18050626,114250.0,114240.0,8.97259216]
[1759291290625,0.18050626,114250.0,114240.0,8.32878218]
[1759291290841,0.17799956,114250.0,114240.0,9.39798218]
[1759291291049,0.18008956,114250.0,114240.0,9.46493345]
[1759291291471,0.18008956,114250.0,114240.0,8.39573345]
[1759291291676,0.18008956,114250.0,114240.0,9.21461345]
[1759291291889,0.18008956,114250.0,114240.0,9.46489345]
[1759291292726,0.18008956,114250.0,114240.0,8.39573345]
[1759291292932,0.18008956,114250.0,114240.0,9.46489345]
[1759291294517,0.17996519,114250.0,114240.0,8.39573345]
[1759291294765,0.17996519,114250.0,114240.0,9.46485345]
[1759291295145,0.17996519,114250.0,114240.0,9.46497345]
[1759291295956,0.17996519,114250.0,114240.0,9.37568079]
[1759291296818,0.1771447,114250.0,114240.0,9.37568079]
[1759291297036,0.00209,114250.0,114240.0,9.37568079]
[1759291297255,0.1985996,114260.0,114250.0,0.5150547]
[1759291297474,0.1765896,114260.0,114250.0,8.53293547]
[1759291297665,0.1765896,114260.0,114250.0,8.55678547]
[1759291297903,0.17658938,114260.0,114250.0,8.55888547]
[1759291298558,0.17658938,114260.0,114250.0,8.55678547]
[1759291298977,0.00155,114260.0,114250.0,8.55888547]
[1759291299387,0.20826227,114270.0,114250.0,8.56210547]
[1759291299654,0.29778748,114270.0,114260.0,8.19296015]
[1759291299874,0.18329201,114270.0,114260.0,8.35792077]
[1759291300060,0.18484201,114270.0,114260.0,8.38177077]
[1759291300510,0.18180225,114270.0,114260.0,8.56213015]
[1759291300733,0.00013974,114270.0,114260.0,8.56213015]
[1759291300963,0.1751638,114270.0,114260.0,8.56213015]
[1759291301428,0.00013974,114270.0,114260.0,8.56213015]
[1759291301651,0.1767138,114270.0,114260.0,8.56213015]
[1759291301858,0.1767138,114270.0,114260.0,8.55891015]
[1759291303024,0.17621336,114270.0,114260.0,8.56213015]
[1759291303254,0.17621336,114270.0,114260.0,8.28269801]
[1759291304497,0.17502406,114270.0,114260.0,8.28269801]
[1759291304936,0.17502406,114270.0,114260.0,8.30471771]
[1759291305829,0.17502406,114270.0,114260.0,8.28269801]
[1759291306074,0.20781708,114280.0,114270.0,0.51502406]
[1759291306326,0.27364255,114280.0,114270.0,8.16944863]
[1759291306518,0.27364255,114280.0,114270.0,8.19329863]
[1759291307413,0.27364255,114280.0,114270.0,7.85193863]
[1759291307660,0.27364255,114280.0,114270.0,8.83009863]
[1759291307890,0.27364255,114280.0,114270.0,8.92105863]
[1759291308725,0.27364255,114280.0,114270.0,8.58105863]
[1759291308930,0.27364255,114280.0,114270.0,7.51193863]
[1759291309128,0.27364255,114280.0,114270.0,8.58105863]
[1759291310140,0.27364255,114280.0,114270.0,8.58101863]
[1759291310438,0.27364255,114280.0,114270.0,8.23977863]
[1759291310638,0.27364255,114280.0,114270.0,8.49013863]
[1759291310849,0.27364255,114280.0,114270.0,8.58109863]
[1759291311891,0.27364255,114280.0,114270.0,8.58308863]
[1759291312121,0.27364255,114280.0,114270.0,8.76128269]
[1759291312350,0.18425708,114280.0,114270.0,8.76128269]
[1759291312575,0.0004,114280.0,114270.0,8.76128269]
[1759291313031,0.00035087,114280.0,114270.0,8.76128269]
[1759291313262,0.17535962,114280.0,114270.0,8.76128269]
[1759291313496,0.17535962,114280.0,114270.0,9.10128269]
[1759291313968,0.00035087,114280.0,114270.0,9.10128269]
[1759291314432,0.19866192,114290.0,114270.0,9.10128269]
[1759291314672,0.28804739,114290.0,114280.0,7.74197863]
[1759291314899,4.991e-05,114290.0,114280.0,8.25698738]
[1759291315164,4.991e-05,114290.0,114280.0,8.28177738]
[1759291316241,4.991e-05,114290.0,114280.0,8.37116285]
[1759291316448,4.991e-05,114290.0,114280.0,9.19004285]
[1759291316677,4.991e-05,114290.0,114280.0,9.10065738]
[1759291317099,0.17504334,114290.0,114280.0,8.03105738]
[1759291317307,4.991e-05,114290.0,114280.0,9.10057738]
[1759291318387,4.991e-05,114290.0,114280.0,8.03105738]
[1759291318620,4.991e-05,114290.0,114280.0,9.10053738]
[1759291318841,4.991e-05,114290.0,114280.0,8.03105738]
[1759291319045,0.19832934,114300.0,114280.0,9.10049738]
[1759291319261,0.19832934,114300.0,114290.0,7.91380206]
[1759291319456,0.17527934,114300.0,114290.0,7.91380206]
[1759291319655,0.17527934,114300.0,114290.0,7.69104206]
[1759291319862,0.17527934,114300.0,114290.0,8.76044206]
[1759291320288,0.17527934,114300.0,114290.0,7.69104206]
[1759291320496,0.17527934,114300.0,114290.0,8.76036206]
[1759291320907,0.17527934,114300.0,114290.0,8.76032206]
[1759291321529,0.17527934,114300.0,114290.0,8.76028206]
[1759291321731,0.17527934,114300.0,114290.0,7.69104206]
[1759291321930,0.17026624,114300.0,114290.0,8.76028206]
[1759291323186,0.20686428,114310.0,114290.0,8.76028206]
[1759291323387,0.20700399,114310.0,114300.0,8.07868863]
[1759291323595,0.18395399,114310.0,114300.0,8.08185863]
[1759291323805,0.18395399,114310.0,114300.0,8.10148863]
[1759291324419,0.18395399,114310.0,114300.0,8.10664863]
[1759291324643,0.18395399,114310.0,114300.0,8.10347863]
[1759291324831,0.18395399,114310.0,114300.0,8.10148863]
[1759291326355,0.18389408,114310.0,114300.0,8.10148863]
[1759291327325,0.18389408,114310.0,114300.0,8.10664863]
[1759291327730,0.18389408,114310.0,114300.0,8.28162675]
[1759291327916,0.18389408,114310.0,114300.0,8.10664863]
[1759291328170,0.00013971,114310.0,114300.0,8.28162675]
[1759291329023,0.19812466,114320.0,114300.0,8.28162675]
[1759291329236,0.19812466,114320.0,114310.0,8.42086145]
[1759291329446,0.17507466,114320.0,114310.0,8.42086145]
[1759291329653,0.17507466,114320.0,114310.0,8.27068863]
[1759291329835,0.17507466,114320.0,114310.0,9.26413145]
[1759291330472,3.936e-05,114320.0,114310.0,9.26413145]
[1759291331338,0.17498687,114320.0,114310.0,9.26413145]
[1759291331753,0.17498687,114320.0,114310.0,8.19473145]
[1759291331961,3.936e-05,114320.0,114310.0,9.26413145]
[1759291334177,3.936e-05,114320.0,114310.0,8.19473145]
[1759291334391,3.936e-05,114320.0,114310.0,9.26405145]
[1759291335040,3.936e-05,114320.0,114310.0,9.28576016]
[1759291335259,3.936e-05,114320.0,114310.0,8.21644016]
[1759291335910,3.936e-05,114320.0,114310.0,9.19476016]
[1759291336120,3.936e-05,114320.0,114310.0,8.99166958]
[1759291336332,3.936e-05,114320.0,114310.0,7.92242958]
[1759291336543,3.936e-05,114320.0,114310.0,8.99162958]
[1759291336933,3.936e-05,114320.0,114310.0,8.99166958]
[1759291337546,3.936e-05,114320.0,114310.0,7.92242958]
[1759291337749,3.936e-05,114320.0,114310.0,8.99166958]
[1759291339217,3.936e-05,114320.0,114310.0,7.92242958]
[1759291339424,3.936e-05,114320.0,114310.0,8.99174958]
[1759291339764,3.936e-05,114320.0,114310.0,8.99166958]
[1759291340560,3.936e-05,114320.0,114310.0,8.99158958]
[1759291340759,0.17498687,114320.0,114310.0,7.74746676]
[1759291341002,3.936e-05,114320.0,114310.0,8.99154958]
[1759291341400,0.17498687,114320.0,114310.0,7.92242958]
[1759291341605,0.17498687,114320.0,114310.0,8.99150958]
[1759291342015,3.936e-05,114320.0,114310.0,8.99150958]
[1759291342963,3.936e-05,114320.0,114310.0,9.01126593]
[1759291344667,3.936e-05,114320.0,114310.0,9.1006514]
[1759291344879,3.936e-05,114320.0,114310.0,9.16745668]
[1759291346060,3.936e-05,114320.0,114310.0,8.5732514]
[1759291346277,3.936e-05,114320.0,114310.0,8.55349505]
[1759291346947,3.936e-05,114320.0,114310.0,8.09885505]
[1759291347384,3.936e-05,114320.0,114310.0,8.01177505]
[1759291347590,3.936e-05,114320.0,114310.0,8.91713505]
[1759291347796,3.936e-05,114320.0,114310.0,7.84813505]
[1759291348037,3.936e-05,114320.0,114310.0,8.55341505]
[1759291348962,3.936e-05,114320.0,114310.0,7.84813505]
[1759291349173,3.936e-05,114320.0,114310.0,8.18965505]
[1759291349413,3.936e-05,114320.0,114310.0,8.09873505]
[1759291349626,3.936e-05,114320.0,114310.0,8.16139189]
[1759291352386,3.936e-05,114320.0,114310.0,8.16131189]
[1759291353327,3.936e-05,114320.0,114310.0,7.9299266]
[1759291353536,3.936e-05,114320.0,114310.0,8.1804466]
[1759291354203,3.936e-05,114320.0,114310.0,8.1803666]
[1759291355115,3.936e-05,114320.0,114310.0,8.24643697]
[1759291355300,3.936e-05,114320.0,114310.0,8.18378013]
[1759291356369,3.936e-05,114320.0,114310.0,7.93334013]
[1759291356568,3.936e-05,114320.0,114310.0,8.24655228]
[1759291356782,3.936e-05,114320.0,114310.0,7.99611228]
[1759291357000,3.936e-05,114320.0,114310.0,8.24655228]
[1759291357188,3.936e-05,114320.0,114310.0,8.41019228]
[1759291357411,3.936e-05,114320.0,114310.0,9.22847228]
[1759291357648,3.936e-05,114320.0,114310.0,9.22843228]
[1759291358045,3.936e-05,114320.0,114310.0,8.15975228]
[1759291358259,3.936e-05,114320.0,114310.0,8.79455681]
[1759291358461,3.936e-05,114320.0,114310.0,9.13384681]
[1759291358671,3.936e-05,114320.0,114310.0,8.79388681]
[1759291358883,3.936e-05,114320.0,114310.0,8.73111466]
[1759291359091,3.936e-05,114320.0,114310.0,9.07319466]
[1759291359338,3.936e-05,114320.0,114310.0,9.07640466]
[1759291360328,3.936e-05,114320.0,114310.0,9.13917681]
[1759291360942,0.17508687,114320.0,114310.0,9.1200421]
[1759291361185,0.00013936,114320.0,114310.0,9.05397173]
[1759291363551,0.00013936,114320.0,114310.0,9.1433572]
[1759291363758,0.00013936,114320.0,114310.0,9.08058505]
[1759291363960,0.00013936,114320.0,114310.0,8.91694505]
[1759291364176,0.00013936,114320.0,114310.0,8.55326505]
[1759291364381,0.00013936,114320.0,114310.0,8.63161183]
[1759291366136,0.00013936,114320.0,114310.0,8.65113719]
[1759291366347,0.00013936,114320.0,114310.0,8.28745719]
[1759291366555,0.00013936,114320.0,114310.0,8.19653719]
[1759291367166,0.00013936,114320.0,114310.0,8.36017719]
[1759291367376,0.00013936,114320.0,114310.0,8.10977719]
[1759291367588,0.00013936,114320.0,114310.0,9.01485719]
[1759291368104,0.00013936,114320.0,114310.0,9.08000891]
[1759291368517,0.00013936,114320.0,114310.0,8.01128891]
[1759291368754,0.00013936,114320.0,114310.0,8.35264891]
[1759291369803,0.00013936,114320.0,114310.0,8.01128891]
[1759291370218,0.00013936,114320.0,114310.0,8.26168891]
[1759291370621,0.00013936,114320.0,114310.0,8.01128891]
[1759291370861,0.00013936,114320.0,114310.0,8.26168891]
[1759291371069,0.00013936,114320.0,114310.0,8.00938377]
[1759291371279,0.00013936,114320.0,114310.0,7.67430669]
[1759291371486,0.00013936,114320.0,114310.0,7.92466669]
[1759291371692,0.00013936,114320.0,114310.0,7.92470669]
[1759291372341,0.00013936,114320.0,114310.0,7.67430669]
[1759291372555,0.00013936,114320.0,114310.0,7.92470669]
[1759291372937,0.00013936,114320.0,114310.0,7.92466669]
[1759291373803,0.00013936,114320.0,114310.0,7.67430669]
[1759291374014,0.00013936,114320.0,114310.0,7.92466669]
[1759291374221,0.00013936,114320.0,114310.0,7.92462669]
[1759291374855,0.00013936,114320.0,114310.0,7.92458669]
[1759291375266,0.00013936,114320.0,114310.0,7.97109669]
[1759291375476,0.00013936,114320.0,114310.0,8.22142669]
[1759291375691,0.00013936,114320.0,114310.0,8.22437669]
[1759291377241,0.00013936,114320.0,114310.0,9.11537669]
[1759291377446,0.00013936,114320.0,114310.0,9.20629669]
[1759291377652,0.00013936,114320.0,114310.0,8.13773669]
[1759291377840,0.00013936,114320.0,114310.0,8.04006863]
[1759291378065,0.00013936,114320.0,114310.0,8.05495829]
[1759291378328,0.17508687,114320.0,114310.0,7.50587829]
[1759291378540,0.00013936,114320.0,114310.0,7.69323541]
[1759291378956,0.00013936,114320.0,114310.0,8.03831541]
[1759291379373,0.00013936,114320.0,114310.0,7.69719541]
[1759291379594,0.00013936,114320.0,114310.0,8.03831541]
[1759291380188,0.17508687,114320.0,114310.0,7.60272994]
[1759291380388,0.17508687,114320.0,114310.0,7.22583107]
[1759291380597,0.26447234,114320.0,114310.0,7.22583107]
[1759291380795,0.26447234,114320.0,114310.0,7.47623107]
[1759291381013,0.26447234,114320.0,114310.0,7.45626141]
[1759291381545,0.26447234,114320.0,114310.0,7.39028947]
[1759291381765,0.26447234,114320.0,114310.0,7.34314552]
[1759291382416,0.28247234,114320.0,114310.0,7.09874552]
[1759291382624,0.28247234,114320.0,114310.0,7.34926552]
[1759291382834,0.26447234,114320.0,114310.0,7.34326552]
[1759291383269,0.26447234,114320.0,114310.0,7.34321721]
[1759291383677,0.29447234,114320.0,114310.0,7.35021721]
[1759291383893,0.29447234,114320.0,114310.0,7.52518003]
[1759291384096,0.29447234,114320.0,114310.0,7.35021721]
[1759291384505,0.29447234,114320.0,114310.0,7.52518003]
[1759291384717,0.11952483,114320.0,114310.0,7.86518003]
[1759291384929,0.03013936,114320.0,114310.0,7.91445398]
[1759291385134,0.03013936,114320.0,114310.0,7.91740398]
[1759291385339,0.03013936,114320.0,114310.0,7.87026003]
[1759291386211,0.03013936,114320.0,114310.0,7.87042003]
[1759291386421,0.03013936,114320.0,114310.0,7.7651573]
[1759291387192,0.03013936,114320.0,114310.0,8.6562773]
[1759291387876,0.03013936,114320.0,114310.0,7.5872373]
[1759291388083,0.03013936,114320.0,114310.0,8.6563173]
[1759291390024,0.03013936,114320.0,114310.0,8.67265691]
[1759291390232,0.03013936,114320.0,114310.0,8.69196527]
[1759291390433,0.20508687,114320.0,114310.0,7.44284245]
[1759291390643,0.20508687,114320.0,114310.0,8.26120245]
[1759291390857,0.20508687,114320.0,114310.0,8.46482221]
[1759291391106,0.20508687,114320.0,114310.0,8.44551385]
[1759291391320,0.20508687,114320.0,114310.0,8.62260667]
[1759291391532,0.20508687,114320.0,114310.0,8.68889357]
[1759291392261,0.17508687,114320.0,114310.0,8.68189357]
[1759291392479,0.17508687,114320.0,114310.0,8.50480075]
[1759291392901,0.21008687,114320.0,114310.0,8.51180075]
[1759291393893,0.21008687,114320.0,114310.0,7.44276075]
[1759291394117,0.21008687,114320.0,114310.0,8.51188075]
[1759291396292,0.21008687,114320.0,114310.0,7.44276075]
[1759291396465,0.21008687,114320.0,114310.0,8.10422099]
[1759291396685,0.21008687,114320.0,114310.0,7.48982099]
[1759291397089,0.21008687,114320.0,114310.0,8.55886099]
[1759291397522,0.21008687,114320.0,114310.0,8.51180075]
[1759291398487,0.21008687,114320.0,114310.0,8.49546114]
[1759291399284,0.21008687,114320.0,114310.0,7.47348138]
[1759291399438,0.21008687,114320.0,114310.0,8.54252138]
[1759291399924,0.21008687,114320.0,114310.0,7.47348138]
[1759291400133,0.29947234,114320.0,114310.0,8.49542114]
[1759291401221,0.29947234,114320.0,114310.0,8.04078114]
[1759291401423,0.29947234,114320.0,114310.0,8.49546114]
[1759291402151,0.26447234,114320.0,114310.0,8.48846114]
[1759291402345,0.26447234,114320.0,114310.0,8.48850114]
[1759291402557,0.27947234,114320.0,114310.0,8.49150114]
[1759291403417,0.26447234,114320.0,114310.0,8.48850114]
[1759291403893,0.29347234,114320.0,114310.0,8.49550114]
[1759291404701,0.26447234,114320.0,114310.0,8.48850114]
[1759291405352,0.27947234,114320.0,114310.0,8.49150114]
[1759291405509,0.31447234,114320.0,114310.0,8.49850114]
[1759291405723,0.29947234,114320.0,114310.0,8.51247788]
[1759291406354,0.26447234,114320.0,114310.0,8.50547788]
[1759291407489,0.26447234,114320.0,114310.0,0.18648]
[1759291407490,0.29462424,114320.0,114310.0,0.18648]
[1759291407702,0.29462424,114320.0,114310.0,1.00492]
[1759291407884,0.32088091,114320.0,114310.0,1.25176]
[1759291409094,0.35588091,114320.0,114310.0,1.25876]
[1759291409521,0.32088091,114320.0,114310.0,1.25176]
[1759291409895,0.34188091,114320.0,114310.0,1.26276]
[1759291410108,0.36788091,114320.0,114310.0,1.25876]
[1759291410319,0.36788091,114320.0,114310.0,1.26236]
[1759291410515,0.39188091,114320.0,114310.0,1.26636]
[1759291411468,0.17499343,114290.0,114280.0,0.25545251]
[1759291411677,0.17507487,114290.0,114280.0,8.34637251]
[1759291411861,0.19959487,114290.0,114280.0,8.09092]
[1759291412699,0.19959487,114290.0,114280.0,8.34128]
[1759291413152,0.22859487,114290.0,114280.0,8.35128]
[1759291413325,0.24659487,114290.0,114280.0,8.41527396]
[1759291413718,0.24659487,114290.0,114280.0,8.43822396]
[1759291415924,0.07160144,114290.0,114280.0,8.95846271]
[1759291416498,0.24659487,114290.0,114280.0,8.95846271]
[1759291416706,0.07160144,114290.0,114280.0,8.95846271]
[1759291417348,0.07160144,114290.0,114280.0,9.84974271]
[1759291417976,0.07160144,114290.0,114280.0,9.78574875]
[1759291419610,0.07160144,114290.0,114280.0,8.71686875]
[1759291419819,0.07160144,114290.0,114280.0,9.78558875]
[1759291423632,0.07160144,114290.0,114280.0,9.80317583]
[1759291423823,0.07160144,114290.0,114280.0,8.80103581]
[1759291423973,0.07160144,114290.0,114280.0,9.86967581]
[1759291425352,0.07160144,114290.0,114280.0,9.86963581]
[1759291425992,0.07160144,114290.0,114280.0,9.91489161]
[1759291426202,0.07160144,114290.0,114280.0,8.84629161]
[1759291426415,0.07160144,114290.0,114280.0,9.84827163]
[1759291427342,0.24659487,114290.0,114280.0,8.60470288]
[1759291427543,0.24659487,114290.0,114280.0,8.53663]
[1759291427732,0.24659487,114290.0,114280.0,9.60511]
[1759291428294,0.24659487,114290.0,114280.0,8.53663]
[1759291428501,0.24659487,114290.0,114280.0,9.60515]
[1759291429309,0.24659487,114290.0,114280.0,9.78227875]
[1759291429516,0.24659487,114290.0,114280.0,8.71686875]
[1759291429718,0.24659487,114290.0,114280.0,9.78538875]
[1759291430647,0.24659487,114290.0,114280.0,8.54186]
[1759291430861,0.24659487,114290.0,114280.0,9.61038]
[1759291431161,0.24659487,114290.0,114280.0,9.78538875]
[1759291431361,0.24659487,114290.0,114280.0,9.78534875]
[1759291432978,0.24659487,114290.0,114280.0,9.85011064]
[1759291433503,0.24659487,114290.0,114280.0,9.22034189]
[1759291433709,0.24659487,114290.0,114280.0,9.67514189]
[1759291433910,0.24659487,114290.0,114280.0,9.69237314]
[1759291434751,0.24659487,114290.0,114280.0,9.86738189]
[1759291435544,0.24659487,114290.0,114280.0,9.93022477]
[1759291436009,0.24659487,114290.0,114280.0,9.91299352]
[1759291436428,0.24659487,114290.0,114280.0,9.84823163]
[1759291436786,0.24659487,114290.0,114280.0,8.77971163]
[1759291437185,0.24659487,114290.0,114280.0,9.67314288]
[1759291437381,0.24659487,114290.0,114280.0,8.60470288]
[1759291437589,0.24659487,114290.0,114280.0,9.67314288]
[1759291438138,0.24659487,114290.0,114280.0,9.84815163]
[1759291438898,0.24659487,114290.0,114280.0,9.67314288]
[1759291439476,0.24659487,114290.0,114280.0,8.60470288]
[1759291439688,0.24659487,114290.0,114280.0,9.67306288]
[1759291439888,0.24659487,114290.0,114280.0,9.58210288]
[1759291440129,0.24659487,114290.0,114280.0,9.67306288]
[1759291440361,0.24659487,114290.0,114280.0,8.60470288]
[1759291440605,0.24659487,114290.0,114280.0,9.32787288]
[1759291440807,0.24659487,114290.0,114280.0,9.60503]
[1759291440937,0.24659487,114290.0,114280.0,9.6223515]
[1759291441279,0.24659487,114290.0,114280.0,8.5539515]
[1759291441485,0.24659487,114290.0,114280.0,9.6223515]
[1759291442173,0.24659487,114290.0,114280.0,8.5539515]
[1759291442370,0.24659487,114290.0,114280.0,9.6223515]
[1759291442571,0.24659487,114290.0,114280.0,8.5539515]
[1759291442777,0.24659487,114290.0,114280.0,9.6223115]
[1759291442958,0.24659487,114290.0,114280.0,8.62038708]
[1759291443196,0.24659487,114290.0,114280.0,9.68874708]
[1759291443668,0.24659487,114290.0,114280.0,9.23394708]
[1759291443867,0.24659487,114290.0,114280.0,8.62038708]
[1759291444083,0.24659487,114290.0,114280.0,9.68874708]
[1759291444793,0.33598034,114290.0,114280.0,9.43902708]
[1759291445013,0.33598034,114290.0,114280.0,9.68870708]
[1759291449537,0.33598034,114290.0,114280.0,9.69380708]
[1759291449674,0.33598034,114290.0,114280.0,9.68870708]
[1759291451174,0.33598034,114290.0,114280.0,9.67138558]
[1759291452891,0.33598034,114290.0,114280.0,8.60306558]
[1759291453103,0.33598034,114290.0,114280.0,9.67126558]
[1759291455780,0.33598034,114290.0,114280.0,9.67333558]
[1759291455976,0.33598034,114290.0,114280.0,9.67126558]
[1759291456568,0.36223892,114290.0,114280.0,9.60483]
[1759291462458,0.36223892,114290.0,114280.0,9.62067651]
[1759291464158,0.36223892,114290.0,114280.0,9.62583651]
[1759291464761,0.36223892,114290.0,114280.0,9.62282651]
[1759291465093,0.36223892,114290.0,114280.0,9.62067651]
[1759291465872,0.36223892,114290.0,114280.0,9.62282651]
[1759291466003,0.36223892,114290.0,114280.0,9.60483]
[1759291466600,0.36223892,114290.0,114280.0,9.60999]
[1759291466801,0.36223892,114290.0,114280.0,9.60698]
[1759291467052,0.36223892,114290.0,114280.0,9.60483]
[1759291470340,0.36223892,114290.0,114280.0,9.60698]
[1759291470646,0.36223892,114290.0,114280.0,9.60702]
[1759291470929,0.36223892,114290.0,114280.0,9.60487]
[1759291471738,0.36223892,114290.0,114280.0,9.60702]
[1759291471901,0.36223892,114290.0,114280.0,9.62257987]
[1759291472117,0.36223892,114290.0,114280.0,9.68577591]
[1759291472917,0.36223892,114290.0,114280.0,9.67021604]
[1759291474094,0.36223892,114290.0,114280.0,9.67537604]
[1759291474609,0.36223892,114290.0,114280.0,9.67236604]
[1759291474810,0.36223892,114290.0,114280.0,9.67021604]
[1759291475692,0.36223892,114290.0,114280.0,9.67537604]
[1759291475895,0.36223892,114290.0,114280.0,8.60713604]
[1759291476105,0.36223892,114290.0,114280.0,9.67537604]
[1759291476315,0.36223892,114290.0,114280.0,9.67236604]
[1759291476513,0.36223892,114290.0,114280.0,9.60487]
[1759291478470,0.36223892,114290.0,114280.0,9.60702]
[1759291478680,0.36223892,114290.0,114280.0,9.61003]
[1759291478887,0.36223892,114290.0,114280.0,9.4081365]
[1759291479092,0.36223892,114290.0,114280.0,8.53878]
[1759291479294,0.36223892,114290.0,114280.0,8.53663]
[1759291479473,0.36223892,114290.0,114280.0,9.60487]
[1759291480723,0.36223892,114290.0,114280.0,9.60702]
[1759291480915,0.36223892,114290.0,114280.0,9.61003]
[1759291481065,0.36223892,114290.0,114280.0,9.62536515]
[1759291481399,0.36223892,114290.0,114280.0,9.62020515]
[1759291482927,0.36223892,114290.0,114280.0,9.62536515]
[1759291484570,0.36223892,114290.0,114280.0,8.55712515]
[1759291484986,0.36223892,114290.0,114280.0,9.62536515]
[1759291485541,0.36223892,114290.0,114280.0,8.55712515]
[1759291485778,0.36223892,114290.0,114280.0,9.62016515]
[1759291486411,0.36223892,114290.0,114280.0,9.62231515]
[1759291486588,0.36223892,114290.0,114280.0,9.62532515]
[1759291487049,0.36223892,114290.0,114280.0,9.69158352]
[1759291488697,0.36223892,114290.0,114280.0,9.23674352]
[1759291488907,0.36223892,114290.0,114280.0,9.69158352]
[1759291490364,0.36223892,114290.0,114280.0,8.62338352]
[1759291490613,0.36223892,114290.0,114280.0,9.69158352]
[1759291491296,0.36223892,114290.0,114280.0,9.67624837]
[1759291491794,0.36223892,114290.0,114280.0,9.60999]
[1759291492333,0.36223892,114290.0,114280.0,9.07336]
[1759291495239,0.36223892,114290.0,114280.0,8.00516]
[1759291495450,0.36223892,114290.0,114280.0,9.07336]
[1759291496271,0.36223892,114290.0,114280.0,8.872764]
[1759291497337,0.36223892,114290.0,114280.0,8.4834932]
[1759291497550,0.36223892,114290.0,114280.0,8.9383332]
[1759291498170,0.36223892,114290.0,114280.0,8.95388004]
[1759291498978,0.36223892,114290.0,114280.0,9.29388004]
[1759291502578,0.33598034,114290.0,114280.0,9.46888879]
[1759291502812,0.24659487,114290.0,114280.0,9.46884879]
[1759291503059,0.07160144,114290.0,114280.0,9.46884879]
[1759291503761,0.02460144,114290.0,114280.0,9.46884879]
[1759291504207,0.05060144,114290.0,114280.0,9.47084879]
[1759291504445,0.05060144,114290.0,114280.0,9.47584879]
[1759291504720,0.10260144,114290.0,114280.0,8.40768879]